bitfinex/quotes_SOLUSD_20220227
["timestamp","ask_amount","ask_price","bid_price","bid_amount"]
[1646001624382,6.0,85.832,85.735,34.63786572]
[1646001624583,6.0,85.832,85.736,2.58808279]
[1646001624784,6.0,85.832,85.737,6.0]
[1646001624982,116.5,85.845,85.737,13.48]
[1646001625182,1.53705914,85.842,85.737,13.48]
[1646001625382,116.5,85.84,85.737,16.22678921]
[1646001625584,116.5,85.838,85.738,2.74655274]
[1646001625785,7.63355036,85.837,85.739,6.0]
[1646001625984,10.38033957,85.837,85.74,16.9]
[1646001626182,1.68037056,85.835,85.741,8.91519562]
[1646001626383,116.5,85.833,85.741,8.91519562]
[1646001626587,116.5,85.831,85.741,8.91519562]
[1646001626784,116.5,85.829,85.741,8.91519562]
[1646001626984,116.5,85.827,85.741,8.91519562]
[1646001627187,116.5,85.825,85.741,2.91519562]
[1646001627387,116.5,85.823,85.741,2.91519562]
[1646001627588,6.0,85.822,85.741,2.91519562]
[1646001627788,8.74678921,85.824,85.741,2.91519562]
[1646001628308,6.0,85.824,85.741,2.91519562]
[1646001628605,6.0,85.839,85.741,2.91519562]
[1646001628806,1.65648989,85.837,85.741,2.91519562]
[1646001629005,1.36656547,85.834,85.741,2.91519562]
[1646001629208,116.5,85.832,85.741,2.91519562]
[1646001629411,116.5,85.83,85.741,2.91519562]
[1646001629608,116.5,85.828,85.741,2.91519562]
[1646001629808,116.5,85.826,85.741,2.91519562]
[1646001630008,116.5,85.824,85.741,2.91519562]
[1646001630212,116.5,85.822,85.741,2.91519562]
[1646001630408,116.5,85.82,85.741,2.91519562]
[1646001630612,116.5,85.818,85.741,2.91519562]
[1646001630811,6.0,85.817,85.741,2.91519562]
[1646001631012,6.0,85.817,85.74,16.9]
[1646001631013,116.5,85.816,85.74,16.9]
[1646001631213,6.0,85.815,85.74,16.9]
[1646001631511,6.0,85.817,85.74,16.9]
[1646001631714,6.0,85.817,85.741,2.51252662]
[1646001631918,6.0,85.818,85.741,2.51252662]
[1646001632911,2.74678921,85.833,85.741,5.25931583]
[1646001633111,2.74678921,85.833,85.742,6.0]
[1646001633313,3.24572778,85.913,85.742,31.47536337]
[1646001633513,46.7884,85.891,85.743,81.15328206]
[1646001633713,2.74678921,85.882,85.744,9.07825426]
[1646001634012,46.7884,85.891,85.75,211.31]
[1646001634217,6.0,85.89,85.76,16.9]
[1646001634411,6.0,85.891,85.761,30.5805]
[1646001634611,6.0,85.891,85.77,211.31]
[1646001634812,6.0,85.891,85.771,3.06936155]
[1646001635112,6.0,85.891,85.781,2.39808475]
[1646001635412,6.0,85.891,85.783,2.81967965]
[1646001635611,20.23152316,85.904,85.783,2.81967965]
[1646001635612,6.0,85.903,85.784,6.0]
[1646001636015,20.23152316,85.904,85.784,8.74678921]
[1646001636414,20.23152316,85.904,85.785,30.82105124]
[1646001636615,20.23152316,85.904,85.791,2.99394388]
[1646001636924,20.23152316,85.921,85.8,16.9]
[1646001637119,20.23152316,85.921,85.801,33.86018765]
[1646001637319,12.11653673,85.925,85.802,2.69650635]
[1646001637616,6.0,85.92,85.803,6.0]
[1646001637818,6.0,85.924,85.803,9.05371829]
[1646001638018,6.0,85.924,85.804,25.4747567]
[1646001638218,6.0,85.924,85.805,8.74524564]
[1646001638416,6.0,85.924,85.821,2.68085032]
[1646001638617,8.74678921,85.924,85.822,6.0]
[1646001638825,8.74678921,85.924,85.822,8.74678921]
[1646001639220,8.74678921,85.924,85.823,2.74678921]
[1646001639420,8.74678921,85.924,85.824,6.0]
[1646001639818,8.74678921,85.924,85.825,2.74678921]
[1646001640022,8.74678921,85.924,85.83,16.9]
[1646001640220,8.74678921,85.924,85.831,8.56963308]
[1646001640824,8.74678921,85.924,85.831,2.56963308]
[1646001644528,116.5,85.923,85.831,2.56963308]
[1646001644725,1.84016581,85.92,85.831,2.56963308]
[1646001644926,116.5,85.918,85.831,2.56963308]
[1646001645125,6.0,85.917,85.831,2.56963308]
[1646001645327,8.74678921,85.919,85.831,2.56963308]
[1646001645527,8.74678921,85.919,85.832,6.0]
[1646001645726,2.74678921,85.918,85.831,2.56963308]
[1646001645926,6.0,85.917,85.831,2.56963308]
[1646001646726,6.0,85.917,85.832,6.0]
[1646001647130,2.74678921,85.916,85.832,6.0]
[1646001647329,6.0,85.915,85.832,6.0]
[1646001647729,2.74678921,85.914,85.832,6.0]
[1646001647929,6.0,85.913,85.833,116.5]
[1646001648128,6.0,85.913,85.834,2.28282815]
[1646001648328,6.0,85.913,85.836,116.5]
[1646001648529,6.0,85.913,85.83,16.9]
[1646001648730,20.23152316,85.936,85.83,16.9]
[1646001648731,119.24678921,85.912,85.83,16.9]
[1646001648930,116.5,85.91,85.83,16.9]
[1646001649130,116.5,85.908,85.792,117.395]
[1646001649330,116.5,85.906,85.82,16.9]
[1646001649530,6.0,85.905,85.821,2.68683814]
[1646001649731,8.74678921,85.905,85.821,2.68683814]
[1646001650130,2.74678921,85.904,85.822,6.0]
[1646001650331,6.0,85.903,85.822,6.0]
[1646001650534,6.0,85.903,85.821,2.68683814]
[1646001650733,2.74678921,85.902,85.821,2.68683814]
[1646001650933,6.0,85.901,85.821,2.68683814]
[1646001651332,2.74678921,85.9,85.821,2.68683814]
[1646001651532,6.0,85.899,85.821,2.68683814]
[1646001651933,2.74678921,85.898,85.821,2.68683814]
[1646001652133,6.0,85.897,85.821,2.68683814]
[1646001652535,2.74678921,85.896,85.821,2.68683814]
[1646001652733,6.0,85.895,85.821,2.68683814]
[1646001653136,2.74678921,85.894,85.821,2.68683814]
[1646001653337,6.0,85.893,85.821,2.68683814]
[1646001653737,8.74678921,85.893,85.821,2.68683814]
[1646001657443,8.74678921,85.893,85.822,6.0]
[1646001657843,8.74678921,85.893,85.82,16.9]
[1646001659743,116.5,85.892,85.82,16.9]
[1646001659945,8.74678921,85.893,85.801,2.67555962]
[1646001659946,116.5,85.89,85.801,2.67555962]
[1646001660143,116.5,85.888,85.802,6.0]
[1646001660342,6.0,85.887,85.802,6.0]
[1646001660542,6.0,85.887,85.801,2.67555962]
[1646001660743,8.74678921,85.887,85.801,2.67555962]
[1646001661144,8.74678921,85.887,85.802,6.0]
[1646001661968,1.4661193,85.885,85.802,6.0]
[1646001662267,1.70327255,85.882,85.801,6.0]
[1646001662467,6.0,85.884,85.793,46.0922]
[1646001662468,1.40465471,85.879,85.793,46.0922]
[1646001662665,1.85868677,85.877,85.793,46.0922]
[1646001662865,6.0,85.876,85.793,46.0922]
[1646001663065,6.0,85.876,85.794,6.0]
[1646001663266,2.74678921,85.875,85.794,6.0]
[1646001663466,6.0,85.874,85.793,46.0922]
[1646001664366,2.74678921,85.873,85.793,46.0922]
[1646001664566,6.0,85.872,85.793,46.0922]
[1646001664766,116.5,85.871,85.793,46.0922]
[1646001665068,116.5,85.869,85.793,46.0922]
[1646001665269,122.5,85.868,85.793,46.0922]
[1646001665566,6.0,85.87,85.793,46.0922]
[1646001665966,6.0,85.872,85.794,6.0]
[1646001666166,6.0,85.872,85.793,46.0922]
[1646001667967,116.5,85.871,85.794,6.0]
[1646001668166,116.5,85.869,85.793,46.0922]
[1646001668369,6.0,85.868,85.793,46.0922]
[1646001668571,122.5,85.868,85.793,46.0922]
[1646001668770,2.74678921,85.867,85.793,46.0922]
[1646001668971,6.0,85.866,85.793,46.0922]
[1646001669369,2.74678921,85.865,85.793,46.0922]
[1646001669569,6.0,85.864,85.793,46.0922]
[1646001669971,2.74678921,85.863,85.793,46.0922]
[1646001670171,6.0,85.862,85.793,46.0922]
[1646001670571,2.74678921,85.861,85.793,46.0922]
[1646001670774,6.0,85.86,85.793,46.0922]
[1646001671173,116.5,85.859,85.772,3.01199289]
[1646001671373,1.37388953,85.857,85.773,6.0]
[1646001671574,6.0,85.856,85.772,6.0]
[1646001671977,1.56833816,85.855,85.772,6.0]
[1646001672175,6.0,85.854,85.772,6.0]
[1646001672978,8.74678921,85.854,85.771,51.05146203]
[1646001675279,8.74678921,85.854,85.771,22.9772]
[1646001675880,116.5,85.853,85.771,22.9772]
[1646001676081,116.5,85.851,85.771,22.9772]
[1646001676381,116.5,85.849,85.771,22.9772]
[1646001676580,6.0,85.85,85.771,22.9772]
[1646001676581,1.35251842,85.847,85.771,22.9772]
[1646001676781,1.83146138,85.844,85.771,22.9772]
[1646001676979,1.74045349,85.841,85.771,22.9772]
[1646001677181,116.5,85.839,85.771,22.9772]
[1646001677380,1.52066156,85.837,85.771,22.9772]
[1646001677581,6.0,85.836,85.771,22.9772]
[1646001678983,6.0,85.837,85.771,22.9772]
[1646001679685,116.5,85.836,85.771,22.9772]
[1646001679884,116.5,85.834,85.771,22.9772]
[1646001680086,116.5,85.832,85.771,22.9772]
[1646001680285,116.5,85.83,85.771,22.9772]
[1646001680487,116.5,85.828,85.771,22.9772]
[1646001680684,6.0,85.827,85.771,22.9772]
[1646001681491,2.74678921,85.835,85.771,22.9772]
[1646001682785,116.5,85.833,85.771,22.9772]
[1646001682988,116.5,85.831,85.771,22.9772]
[1646001683189,116.5,85.829,85.771,22.9772]
[1646001683389,122.5,85.828,85.771,22.9772]
[1646001684089,122.5,85.828,85.745,2.3710833]
[1646001684287,122.5,85.828,85.747,2.5759208]
[1646001684688,122.5,85.828,85.748,6.0]
[1646001685387,122.5,85.828,85.747,2.5759208]
[1646001686488,122.5,85.828,85.748,6.0]
[1646001686890,122.5,85.828,85.747,2.5759208]
[1646001688490,122.5,85.828,85.748,6.0]
[1646001688694,122.5,85.828,85.748,31.83826203]
[1646001688891,122.5,85.828,85.749,2.27069344]
[1646001689091,122.5,85.828,85.75,6.0]
[1646001689894,122.5,85.828,85.749,2.27069344]
[1646001690491,122.5,85.828,85.75,6.0]
[1646001690699,122.5,85.828,85.749,2.27069344]
[1646001691092,2.74678921,85.835,85.75,122.5]
[1646001691294,23.4055,85.841,85.75,122.5]
[1646001691494,6.0,85.84,85.751,2.54603202]
[1646001691693,6.0,85.84,85.753,116.5]
[1646001691894,6.0,85.84,85.755,116.5]
[1646001692095,6.0,85.84,85.757,116.5]
[1646001692295,6.0,85.84,85.759,116.5]
[1646001692593,6.0,85.84,85.761,2.36951011]
[1646001692794,6.0,85.84,85.762,6.0]
[1646001693196,6.0,85.84,85.764,2.49793215]
[1646001693394,6.0,85.84,85.765,6.0]
[1646001693695,6.0,85.84,85.764,2.49793215]
[1646001694294,6.0,85.84,85.765,6.0]
[1646001694697,6.0,85.84,85.764,2.49793215]
[1646001695094,6.0,85.84,85.765,6.0]
[1646001695696,6.0,85.84,85.764,2.49793215]
[1646001699001,6.0,85.84,85.765,6.0]
[1646001699401,6.0,85.84,85.764,2.49793215]
[1646001699901,6.0,85.84,85.765,6.0]
[1646001700308,6.0,85.84,85.764,2.49793215]
[1646001700912,6.0,85.84,85.765,6.0]
[1646001701311,6.0,85.84,85.764,2.49793215]
[1646001701812,6.0,85.84,85.765,6.0]
[1646001702211,6.0,85.84,85.764,2.49793215]
[1646001703329,116.5,85.839,85.764,2.49793215]
[1646001703531,6.0,85.838,85.765,6.0]
[1646001703929,8.74678921,85.838,85.764,2.49793215]
[1646001706936,8.74678921,85.838,85.765,6.0]
[1646001707437,8.74678921,85.838,85.764,2.49793215]
[1646001708337,125.24678921,85.838,85.763,23.9098]
[1646001708539,2.74678921,85.837,85.764,9.01937809]
[1646001708739,6.0,85.836,85.764,3.01937809]
[1646001710441,6.0,85.836,85.765,6.0]
[1646001710643,6.0,85.84,85.764,3.01937809]
[1646001711244,6.0,85.84,85.765,6.0]
[1646001711457,6.0,85.84,85.764,3.01937809]
[1646001711846,6.0,85.84,85.765,6.0]
[1646001712544,6.0,85.84,85.764,3.01937809]
[1646001712744,116.5,85.839,85.763,23.9098]
[1646001712946,116.5,85.837,85.764,6.0]
[1646001713146,116.5,85.835,85.764,6.0]
[1646001713349,116.5,85.833,85.763,23.9098]
[1646001713546,116.5,85.831,85.763,23.9098]
[1646001713769,116.5,85.829,85.745,2.70882789]
[1646001713954,6.0,85.828,85.747,2.52057551]
[1646001714150,6.0,85.828,85.748,6.0]
[1646001714350,6.0,85.828,85.747,2.52057551]
[1646001714548,23.2342,85.827,85.747,2.52057551]
[1646001714749,6.0,85.826,85.747,2.52057551]
[1646001714949,6.0,85.826,85.748,6.0]
[1646001715148,6.0,85.826,85.747,2.52057551]
[1646001715750,6.0,85.826,85.748,6.0]
[1646001716051,6.0,85.826,85.747,2.52057551]
[1646001717153,30.67292039,85.826,85.747,2.52057551]
[1646001717350,30.67292039,85.826,85.748,6.0]
[1646001718053,30.67292039,85.826,85.747,2.52057551]
[1646001718655,24.67292039,85.826,85.747,2.52057551]
[1646001718855,24.67292039,85.826,85.748,6.0]
[1646001720461,6.0,85.825,85.748,6.0]
[1646001724083,24.67292039,85.826,85.748,6.0]
[1646001724385,6.0,85.825,85.748,6.0]
[1646001725384,6.0,85.825,85.75,2.45900489]
[1646001725584,6.0,85.825,85.751,6.0]
[1646001730190,6.0,85.825,85.751,122.5]
[1646001730390,6.0,85.825,85.752,2.3402733]
[1646001730591,6.0,85.825,85.753,6.0]
[1646001731092,6.0,85.826,85.753,6.0]
[1646001735294,6.0,85.826,85.747,2.32444874]
[1646001735493,6.0,85.826,85.748,6.0]
[1646001735694,23.2342,85.827,85.748,6.0]
[1646001735894,6.0,85.826,85.748,6.0]
[1646001736194,6.0,85.826,85.751,116.5]
[1646001736394,6.0,85.832,85.752,8.58436188]
[1646001737103,6.0,85.837,85.752,8.58436188]
[1646001739398,2.74678921,85.836,85.752,8.58436188]
[1646001739700,6.0,85.835,85.752,8.58436188]
[1646001740401,6.52,85.835,85.752,8.58436188]
[1646001740602,6.52,85.835,85.752,2.58436188]
[1646001740803,0.04187029,85.834,85.752,2.58436188]
[1646001741401,0.04187029,85.834,85.753,6.0]
[1646001741600,0.04187029,85.834,85.752,2.58436188]
[1646001742703,30.35628327,85.835,85.752,2.58436188]
[1646001742902,6.0,85.835,85.752,2.58436188]
[1646001743302,6.0,85.835,85.753,6.0]
[1646001743503,6.0,85.835,85.752,2.58436188]
[1646001745005,6.0,85.835,85.753,6.0]
[1646001749928,6.0,85.834,85.753,6.0]
[1646001750127,6.0,85.837,85.753,6.0]
[1646001751228,7.4049937,85.837,85.753,6.0]
[1646001753631,6.0,85.837,85.753,6.0]
[1646001755739,6.0,85.837,85.752,2.58436188]
[1646001755940,6.0,85.837,85.753,6.0]
[1646001757038,6.0,85.837,85.752,2.58436188]
[1646001757439,6.0,85.837,85.753,6.0]
[1646001758742,7.78929657,85.837,85.753,6.0]
[1646001759145,116.5,85.836,85.752,2.58436188]
[1646001759345,116.5,85.834,85.752,2.58436188]
[1646001759543,116.5,85.832,85.752,2.58436188]
[1646001759746,116.5,85.83,85.752,2.58436188]
[1646001759943,122.5,85.829,85.752,2.58436188]
[1646001760143,24.3237,85.828,85.752,2.58436188]
[1646001760343,6.0,85.827,85.752,2.58436188]
[1646001761148,7.38917082,85.827,85.75,16.9]
[1646001761447,7.38917082,85.827,85.751,6.0]
[1646001761647,7.38917082,85.827,85.75,16.9]
[1646001761946,7.38917082,85.827,85.751,6.0]
[1646001762147,7.38917082,85.827,85.75,16.9]
[1646001762747,7.38917082,85.827,85.751,32.50298394]
[1646001763549,7.38917082,85.827,85.75,16.9]
[1646001763751,7.38917082,85.827,85.746,23.7588]
[1646001765952,6.0,85.827,85.746,23.7588]
[1646001766151,6.0,85.827,85.747,2.92716995]
[1646001766977,6.0,85.827,85.748,6.0]
[1646001769859,7.4731486,85.827,85.748,6.0]
[1646001770061,7.4731486,85.827,85.747,6.0]
[1646001770359,7.4731486,85.827,85.746,23.7588]
[1646001772266,7.4731486,85.827,85.747,6.0]
[1646001772465,7.4731486,85.827,85.746,23.7588]
[1646001773167,7.4731486,85.827,85.746,23.2588]
[1646001774784,7.4731486,85.827,85.746,26.00558921]
[1646001776595,6.0,85.827,85.746,26.00558921]
[1646001778893,6.0,85.827,85.747,6.0]
[1646001779192,6.0,85.827,85.746,26.00558921]
[1646001780494,116.5,85.826,85.746,26.00558921]
[1646001780693,116.5,85.824,85.746,26.00558921]
[1646001780894,116.5,85.822,85.747,6.0]
[1646001781094,116.5,85.82,85.747,6.0]
[1646001781296,122.5,85.819,85.746,26.00558921]
[1646001782194,23.9951,85.818,85.746,26.00558921]
[1646001782397,6.0,85.817,85.747,6.0]
[1646001782895,6.0,85.817,85.746,26.00558921]
[1646001784497,6.0,85.817,85.747,6.0]
[1646001785298,6.0,85.817,85.746,26.00558921]
[1646001785898,6.0,85.817,85.747,6.0]
[1646001786197,6.0,85.817,85.746,26.00558921]
[1646001787899,6.0,85.817,85.747,8.77711334]
[1646001788899,6.0,85.817,85.747,2.77711334]
[1646001789505,6.0,85.817,85.748,6.0]
[1646001790002,6.0,85.817,85.747,2.77711334]
[1646001790606,6.0,85.817,85.746,26.00558921]
[1646001791105,6.0,85.817,85.747,6.0]
[1646001791507,6.0,85.817,85.746,26.00558921]
[1646001791706,6.0,85.817,85.747,6.0]
[1646001791907,6.0,85.817,85.746,26.00558921]
[1646001793511,6.0,85.817,85.747,6.0]
[1646001793713,6.0,85.817,85.746,26.00558921]
[1646001794413,6.0,85.817,85.747,6.0]
[1646001795619,6.0,85.817,85.746,26.00558921]
[1646001796219,6.0,85.817,85.747,6.0]
[1646001796620,6.0,85.817,85.746,26.00558921]
[1646001798425,6.0,85.817,85.747,6.0]
[1646001798826,6.0,85.817,85.746,26.00558921]
[1646001800327,6.0,85.817,85.747,6.0]
[1646001801843,6.0,85.817,85.746,26.00558921]
[1646001802544,6.0,85.817,85.747,6.0]
[1646001803843,6.0,85.817,85.746,26.00558921]
[1646001804046,116.5,85.816,85.746,23.2588]
[1646001804243,6.0,85.815,85.746,23.2588]
[1646001804443,6.0,85.817,85.746,23.2588]
[1646001808049,116.5,85.816,85.746,23.2588]
[1646001808250,116.5,85.814,85.746,23.2588]
[1646001808450,116.5,85.812,85.746,23.2588]
[1646001808648,116.5,85.81,85.746,23.2588]
[1646001808851,122.5,85.809,85.746,23.2588]
[1646001809450,23.4686,85.808,85.746,23.2588]
[1646001809651,6.0,85.807,85.746,23.2588]
[1646001810452,6.0,85.807,85.721,2.64300715]
[1646001810653,6.0,85.807,85.722,24.3202]
[1646001810855,6.0,85.807,85.723,2.62026356]
[1646001811252,6.0,85.807,85.724,32.51451537]
[1646001811453,6.0,85.807,85.725,2.51558308]
[1646001812053,6.0,85.807,85.726,32.51451537]
[1646001813252,116.5,85.806,85.726,32.51451537]
[1646001813454,116.5,85.804,85.726,32.51451537]
[1646001813654,116.5,85.802,85.723,32.51451537]
[1646001813854,116.5,85.8,85.723,32.51451537]
[1646001814054,122.5,85.799,85.723,32.51451537]
[1646001814255,24.8004,85.798,85.723,32.51451537]
[1646001814454,6.0,85.797,85.723,32.51451537]
[1646001816558,6.0,85.797,85.724,2.54370821]
[1646001818056,6.0,85.797,85.722,24.3202]
[1646001822757,6.0,85.797,85.723,6.0]
[1646001822957,116.5,85.796,85.722,24.3202]
[1646001823257,1.59419434,85.793,85.722,24.3202]
[1646001823457,6.0,85.792,85.722,24.3202]
[1646001823857,6.0,85.797,85.722,24.3202]
[1646001825557,6.0,85.797,85.722,23.8202]
[1646001825957,1.67329697,85.795,85.722,23.8202]
[1646001826259,116.5,85.793,85.722,23.8202]
[1646001826457,116.5,85.791,85.722,23.8202]
[1646001826659,116.5,85.789,85.722,23.8202]
[1646001826858,6.0,85.788,85.722,23.8202]
[1646001827058,23.7845,85.787,85.722,23.8202]
[1646001827259,6.0,85.786,85.722,23.8202]
[1646001836172,23.7845,85.787,85.722,23.8202]
[1646001836371,23.7845,85.787,85.723,6.0]
[1646001836577,23.7845,85.787,85.723,8.40783901]
[1646001836969,1.68743725,85.818,85.723,8.40783901]
[1646001837170,30.4458,85.817,85.724,119.24678921]
[1646001837372,30.4458,85.817,85.726,116.5]
[1646001837573,30.4458,85.817,85.728,116.5]
[1646001837772,30.4458,85.817,85.729,2.39309861]
[1646001838174,30.4458,85.817,85.732,2.75757581]
[1646001838372,30.4458,85.817,85.734,3.04294062]
[1646001838773,30.4458,85.817,85.735,6.0]
[1646001838974,6.0,85.817,85.736,116.5]
[1646001839183,6.0,85.828,85.738,116.5]
[1646001839381,6.0,85.831,85.74,133.4]
[1646001839580,6.0,85.831,85.742,116.5]
[1646001839780,6.0,85.831,85.743,9.10729529]
[1646001839981,6.0,85.831,85.744,24.9105]
[1646001840181,6.0,85.831,85.745,8.80793129]
[1646001841485,6.0,85.831,85.746,116.5]
[1646001841683,6.0,85.831,85.748,116.5]
[1646001841882,6.0,85.831,85.75,116.5]
[1646001842095,6.0,85.831,85.749,9.10189606]
[1646001842096,6.0,85.831,85.751,124.85441698]
[1646001842296,6.0,85.831,85.752,2.81401058]
[1646001842599,6.0,85.831,85.753,6.0]
[1646001843496,6.0,85.831,85.748,116.5]
[1646001843696,6.0,85.831,85.75,116.5]
[1646001843896,6.0,85.831,85.751,125.49774088]
[1646001844100,6.0,85.831,85.752,2.93014971]
[1646001844300,6.0,85.831,85.753,6.0]
[1646001844899,6.0,85.831,85.746,6.0]
[1646001849202,6.0,85.831,85.747,116.5]
[1646001849407,6.0,85.831,85.748,8.70405751]
[1646001854308,6.0,85.831,85.749,116.5]
[1646001854516,6.0,85.831,85.75,122.5]
[1646001854709,6.0,85.831,85.75,116.5]
[1646001854909,6.0,85.831,85.751,6.0]
[1646001855715,6.0,85.831,85.75,116.5]
[1646001855913,6.0,85.831,85.751,6.0]
[1646001856113,6.0,85.831,85.751,8.74678921]
[1646001856516,6.0,85.831,85.752,2.74678921]
[1646001856713,6.0,85.831,85.753,6.0]
[1646001856915,6.0,85.831,85.754,23.1445]
[1646001857117,6.0,85.831,85.755,6.0]
[1646001857316,6.0,85.831,85.756,116.5]
[1646001857518,6.0,85.831,85.758,116.5]
[1646001857815,6.0,85.831,85.761,2.61115241]
[1646001858016,6.0,85.831,85.764,2.55232151]
[1646001858316,6.0,85.831,85.767,2.87496188]
[1646001858517,6.0,85.85,85.771,116.5]
[1646001858716,6.0,85.85,85.77,16.9]
[1646001858717,29.4461,85.858,85.773,116.5]
[1646001859022,6.0,85.857,85.776,3.11646181]
[1646001859218,6.0,85.857,85.79,133.4]
[1646001859517,6.0,85.857,85.791,24.6003]
[1646001859917,23.47912994,85.885,85.792,119.24678921]
[1646001860221,150.48110335,85.888,85.795,2.92070721]
[1646001860418,149.03481412,85.888,85.801,116.5]
[1646001860618,1.68650145,85.898,85.803,116.5]
[1646001860818,1.68650145,85.898,85.805,116.5]
[1646001861119,1.68650145,85.898,85.807,116.5]
[1646001861320,6.0,85.897,85.809,116.5]
[1646001861518,6.0,85.897,85.81,122.5]
[1646001862220,6.0,85.897,85.81,139.4]
[1646001862721,6.0,85.897,85.81,22.9]
[1646001865521,6.0,85.897,85.811,2.63156718]
[1646001865719,6.0,85.901,85.813,116.5]
[1646001866018,6.0,85.901,85.812,6.0]
[1646001866019,6.0,85.901,85.816,2.62015876]
[1646001866218,6.0,85.901,85.82,133.4]
[1646001866419,23.3916,85.917,85.82,133.4]
[1646001866420,6.0,85.916,85.822,116.5]
[1646001866619,6.0,85.916,85.825,2.89404006]
[1646001866819,6.0,85.916,85.826,6.0]
[1646001867222,6.0,85.916,85.827,24.6721]
[1646001867420,116.5,85.915,85.828,6.0]
[1646001867620,7.7348953,85.914,85.828,6.0]
[1646001867820,7.7348953,85.914,85.827,24.6721]
[1646001868221,116.5,85.913,85.827,24.6721]
[1646001868420,1.71459825,85.91,85.827,24.6721]
[1646001868621,116.5,85.908,85.827,24.6721]
[1646001868822,7.79746621,85.907,85.827,24.6721]
[1646001869023,24.4894,85.906,85.827,24.6721]
[1646001869224,7.56807574,85.905,85.827,24.6721]
[1646001869422,1.54241256,85.903,85.827,24.6721]
[1646001869623,6.0,85.902,85.827,24.6721]
[1646001871025,116.5,85.901,85.827,24.6721]
[1646001871225,7.83711254,85.9,85.827,24.6721]
[1646001871425,116.5,85.898,85.827,24.6721]
[1646001871627,116.5,85.896,85.827,24.6721]
[1646001871825,116.5,85.894,85.804,2.533915]
[1646001872026,116.5,85.892,85.805,28.5611]
[1646001872227,116.5,85.89,85.805,28.5611]
[1646001872430,1.75630204,85.887,85.805,28.5611]
[1646001872628,6.0,85.886,85.805,28.5611]
[1646001873027,6.0,85.886,85.805,22.5611]
[1646001875235,1.77716087,85.884,85.805,22.5611]
[1646001875429,1.67287975,85.881,85.805,22.5611]
[1646001875629,1.6651793,85.878,85.805,22.5611]
[1646001875830,1.44932056,85.875,85.805,22.5611]
[1646001876030,116.5,85.873,85.805,22.5611]
[1646001876230,6.0,85.874,85.805,22.5611]
[1646001876231,1.46129337,85.87,85.805,22.5611]
[1646001876434,6.0,85.869,85.805,22.5611]
[1646001876732,122.5,85.869,85.805,22.5611]
[1646001876930,1.47577869,85.868,85.805,22.5611]
[1646001877133,6.0,85.867,85.805,22.5611]
[1646001877833,1.47577869,85.868,85.805,22.5611]
[1646001878234,6.0,85.867,85.805,22.5611]
[1646001879435,6.0,85.871,85.806,2.25972632]
[1646001879638,16.9,85.9,85.806,2.25972632]
[1646001879838,6.0,85.891,85.806,2.25972632]
[1646001880038,6.0,85.891,85.807,6.0]
[1646001880438,22.9383,85.89,85.807,6.0]
[1646001880643,6.0,85.889,85.807,6.0]
[1646001883959,10.659,85.889,85.807,6.0]
[1646001886863,6.0,85.889,85.807,6.0]
[1646001887364,7.36524596,85.889,85.807,6.0]